Cogmind - Beta 15 @@@ ROGUE MODE // 2025.05.12 @ 21:21:14 Player: DuckBoy Result: Destroyed by Y-64 Sentinel with KE Penetrator Performance ------------- Evolutions (5) 2500 Regions Visited (10) 2000 Robots Destroyed (231) 1155 Value Destroyed (8381) 8381 Prototype IDs (20) 400 Alien Tech Used (0) 0 Bonus (3677) 3677 TOTAL SCORE: 18113 Bonus ------- High Alert Combat Kills 1010 Follower Combat Kills 1281 Entered Garrisons 400 Used RIF Installer 1000 Friendly Fire -14 Cogmind --------- Core Integrity 0/1000 Matter 272/300 Energy 99/100 System Corruption 9% Temperature Cool (0) Movement Core (50) Location -5/Factory Parts ------- > --- POWER (2) -------- (None) > --- PROPULSION (6) --- (None) > --- UTILITY (5) ------ Improved Signal Interpreter Improved System Shield Improved Corruption Screen > --- WEAPON (4) ------- (None) > --- INVENTORY (5) ---- Improved Hardlight Generator Force Field Improved System Restoration Module V3-11A's Pendant Peak State ------------ > --- POWER ------------ Improved Deuterium Engine Neutrino-Fission Core > --- PROPULSION ------- Medium Treads Medium Treads Medium Treads Hovering Gravmag-FC Exoskeleton > --- UTILITY ---------- Armored Scrap Engine Improved Cooling System High-capacity Storage Unit Improved System Shield > --- WEAPON ----------- Burst Accelerated Mag Construct/C KE Autogun Construct/G Shotgun Ballistic Magnetic Construct/C Plasma Sword > --- INVENTORY -------- Cooled Deuterium Engine Advanced Sensor Array Advanced Sensor Array Improved Hardlight Generator Force Field Hacking Suite Improved Dynamic Insulation System Improved Corruption Screen Improved Corruption Screen V3-11A's Pendant Gauss Rifle Hypervelocity Coil Gun Proton Missile Launcher Improved Proton Missile Launcher Remote Datajack Multitool Makeshift Hammer [Rating: 94] Favorites ----------- Power Ion Engine Engine Ion Engine Power Core Constructs Propulsion Light Treads Treads Light Treads Leg Aluminum Leg Wheel Compact Wheel Hover Unit Constructs Utility High-capacity Storage Unit Device Armored Scrap Engine Storage High-capacity Storage Unit Processor Signal Interpreter Hackware Hacking Suite Protection Improved Light Armor Plating Weapon Enhanced Autogun Energy Gun Cooled Pulse Rifle Energy Cannon Subdweller Beam Cannon Ballistic Gun Enhanced Autogun Ballistic Cannon Constructs Launcher Grenade Launcher Special Weapon Remote Datajack Impact Weapon Makeshift Hammer Slashing Weapon Plasma Sword Build | -11 -10 -10 -8 -8 -8 -8 -7 -7 -7 -5 ------- Run | Yrd Mat Sub Mat Gar Mat Gar Fac Sto Rec Fac Slots Evolved 10 | . . . 4 . . . 2 . . 4 Power 1 | . . . . . . . . . . 1 Propulsion 4 | . . . 2 . . . . . . 2 Utility 3 | . . . 2 . . . 1 . . . Weapon 2 | . . . . . . . 1 . . 1 Parts Attached 152 | 7 3 12 38 15 1 17 18 9 8 24 Power 19 | 2 . 1 4 3 . 3 . 3 . 3 Engine 17 | 2 . 1 4 2 . 3 . 3 . 2 Core 2 | . . . . 1 . . . . . 1 Reactor . | . . . . . . . . . . . Propulsion 43 | 2 . 4 14 2 1 9 5 1 2 3 Treads 30 | 2 . 2 9 2 1 6 4 . 2 2 Leg 4 | . . . 1 . . 3 . . . . Wheel 8 | . . 2 4 . . . 1 1 . . Hover 1 | . . . . . . . . . . 1 Flight . | . . . . . . . . . . . Utility 51 | 1 1 3 9 7 . 3 12 1 4 10 Device 16 | . . 1 4 1 . . . . 3 7 Storage 5 | 1 1 1 1 . . . . 1 . . Processor 4 | . . . . 1 . . . . . 3 Hackware 13 | . . . . 2 . . 11 . . . Protection 13 | . . 1 4 3 . 3 1 . 1 . Artifact . | . . . . . . . . . . . Weapon 39 | 2 2 4 11 3 . 2 1 4 2 8 Energy Gun 9 | 1 . 1 2 . . . . 3 1 1 Energy Cannon 3 | . . . 1 . . . . 1 1 . Ballistic Gun 13 | 1 1 1 3 2 . 2 . . . 3 Ballistic Cannon . | . . . . . . . . . . . Launcher 7 | . . 2 2 1 . . . . . 2 Special Weapon 3 | . . . 1 . . . 1 . . 1 Impact Weapon 3 | . 1 . 2 . . . . . . . Slashing Weapon 1 | . . . . . . . . . . 1 Piercing Weapon . | . . . . . . . . . . . Special Melee Weapon . | . . . . . . . . . . . Unidentified Prototypes 8 | . . 1 1 . . . . 4 1 1 Corrupted Parts 1 | . . . . . . . . . . 1 System Corruption 4 | . . . . . . . . . . 4 Parts Lost 69 | . . 8 10 8 1 10 . . 1 31 Power 10 | . . 2 . 2 . 1 . . . 5 Propulsion 30 | . . 3 5 4 1 7 . . 1 9 Utility 15 | . . 2 3 2 . 2 . . . 6 Weapon 14 | . . 1 2 . . . . . . 11 Highest Loss Streak 10 | . . 3 4 3 1 4 . . 1 10 To Critical Strikes 1 | . . . . . . 1 . . . . Average Backups 17 | 1 14 18 19 19 19 19 17 18 15 12 Power 1 | . 1 . . 1 3 2 1 1 2 . Propulsion 1 | . 2 2 2 2 . . . 2 . . Utility 7 | . 4 6 7 6 6 8 13 7 5 7 Weapon 6 | . 5 7 9 8 9 7 2 5 5 2 Tool/Special . | . . . . . . . . . . . Unused Backups 46 | . . 4 16 3 . 10 1 3 4 5 Power 7 | . . . . 3 . 2 . 1 1 . Propulsion 2 | . . 1 . . . 1 . . . . Utility 19 | . . . 7 . . 4 1 2 . 5 Weapon 18 | . . 3 9 . . 3 . . 3 . Tool/Special . | . . . . . . . . . . . Average Slot Usage (%) 89 | . 88 93 93 96 100 96 98 100 89 58 Engine 8 | . 14 13 8 6 9 8 7 7 5 2 Treads 22 | . 27 24 28 29 25 19 23 23 24 9 Wheel 4 | . . 3 3 5 11 9 7 7 4 . Device 4 | . . 1 13 3 9 1 . . 5 6 Storage 9 | . 17 13 9 9 9 9 7 7 7 4 Processor 1 | . . . . 1 9 9 1 . . 3 Hackware 8 | . . . . 10 9 9 22 30 18 5 Protection 5 | . . 8 11 11 . 7 3 . 1 . Energy Gun 4 | . . 1 4 5 . . . 7 15 6 Energy Cannon 1 | . . . 2 . . . . 2 2 2 Ballistic Gun 8 | . 21 3 5 6 18 12 20 8 . 2 Launcher 2 | . . 10 2 3 . . . . . . Impact Weapon 4 | . 5 12 3 2 . 3 1 2 . 1 Peak Build Rating 94 | 6 8 15 30 34 32 32 50 54 67 94 Average Rating 33 | 4 7 9 24 29 31 27 44 52 57 65 On Entrance 29 | . 6 8 15 30 32 32 29 48 54 67 Naked Turns . | . . . . . . . . . . . Heaviest Build 88 | 14 54 58 70 65 56 63 62 65 71 88 Greatest Support 113 | 40 40 40 80 80 60 60 84 16 113 113 Greatest Overweight (x) 14 | . 1 1 6 4 3 5 3 4 14 7 Average Overweight (x) 1 | . . . . 2 1 2 2 3 1 1 Largest Inventory Capacity 25 | 8 20 25 20 20 20 20 20 20 20 20 Average Capacity 19 | 6 19 20 20 20 20 20 20 20 20 17 Most Carried 24 | 3 18 24 20 20 20 20 20 20 20 18 Average Carried 17 | 1 14 18 19 19 19 19 17 18 15 12 Final Capacity 20 | 8 20 20 20 20 20 20 20 20 20 5 Final Carried 20 | 3 18 20 20 20 20 20 17 19 12 4 Scrap Engine Consumption 100 | . . . . . . . . . 31 69 Constructs Created 7 | . . . . . . . . . 5 2 Constructs Modified 18 | . . . . . . . . . 5 13 Class Distribution -------------------- 33% | Scavenger-Mutant 31% | Mutant 7% | Hacker-Gunner 6% | Hacker-Tank 4% | Gunner 4% | Construct 3% | Hacker-Mutant Dominant Class ---------------- Mutant | -10/Materials Mutant | -10/Subcaves Scavenger-Mutant | -8/Materials Scavenger-Mutant | -8/Garrison Scavenger-Mutant | -8/Materials Scavenger-Mutant | -8/Garrison Hacker-Tank | -7/Factory Hacker-Gunner | -7/Storage Hacker-Tank | -7/Recycling Mutant | -5/Factory Resources | -11 -10 -10 -8 -8 -8 -8 -7 -7 -7 -5 ----------- Run | Yrd Mat Sub Mat Gar Mat Gar Fac Sto Rec Fac Matter Collected 5705 | 202 412 470 863 668 167 906 709 436 115 757 Remotely . | . . . . . . . . . . . Salvage Created 9011 | . 586 405 1791 934 162 1044 564 705 143 2677 Parts 486 | . 41 33 103 58 6 48 34 26 11 126 Haulers Intercepted 11 | . 1 . 3 . . . . 5 . 2 Recyclers Shooed 5 | . 2 . . . . . . . . 3 Parts Field Recycled . | . . . . . . . . . . . Retrieved Matter . | . . . . . . . . . . . Parts Self-Destructed 9 | . . 9 . . . . . . . . Prevented . | . . . . . . . . . . . Kills | -11 -10 -10 -8 -8 -8 -8 -7 -7 -7 -5 ------- Run | Yrd Mat Sub Mat Gar Mat Gar Fac Sto Rec Fac Combat Hostiles Destroyed 173 | . 12 21 38 30 3 29 5 5 2 28 Melee 23 | . 1 3 5 2 . 2 . . . 10 Guns 62 | . 10 1 11 6 3 12 5 5 2 7 Cannons 6 | . . . 4 . . . . . . 2 AOE 65 | . . 15 12 19 . 13 . . . 6 Classes Destroyed 17 | . 8 2 3 2 . 1 . . . 1 Worker 10 | . 1 . . . . . 2 4 . 3 Builder 13 | . 1 . 3 . . . 1 1 1 6 Tunneler 2 | . 1 . . . . . . . . 1 Hauler 11 | . 1 . 3 . . . . 5 . 2 Recycler 9 | . 1 . 2 . . . 3 . . 3 Mechanic 1 | . . . 1 . . . . . . . Operator 6 | . . . 4 . . . 1 . . 1 Watcher 5 | . 3 . 2 . . . . . . . Swarmer 33 | . 5 7 6 12 . 3 . . . . Grunt 66 | . 7 1 22 11 3 14 2 2 . 4 Brawler 5 | . . . 1 1 . 1 . 1 . 1 Duelist 5 | . . . . 2 . 2 . 1 . . Sentry 22 | . . 1 9 2 . 5 . 1 2 2 Specialist 4 | . . . . . . . . . . 4 Hunter 11 | . . . . 2 . 1 1 . . 7 Programmer 16 | . . . . . . 3 2 . . 11 Subdweller 12 | . . 12 . . . . . . . . Best Kill Streak 11 | . 3 4 8 11 3 10 3 5 1 5 Combat Bots Only 11 | . 3 4 6 11 3 10 2 3 1 3 Max Kills in Single Turn 4 | . 1 3 2 3 1 3 1 2 1 4 Gunslinging . | . . . . . . . . . . . Exploded 3 | . . 3 2 3 . 3 . . . 2 Melee 1 | . 1 1 1 1 . 1 . . . 1 Uniques/NPCs Destroyed . | . . . . . . . . . . . Combat | -11 -10 -10 -8 -8 -8 -8 -7 -7 -7 -5 -------- Run | Yrd Mat Sub Mat Gar Mat Gar Fac Sto Rec Fac Hostile Shots Fired 1163 | . 65 76 161 141 12 195 17 67 17 412 Missed 338 | . 19 22 53 33 2 51 6 31 8 113 Hits 825 | . 46 54 108 108 10 144 11 36 9 299 Melee 5 | . . . . . . 1 . 4 . . Projectile 820 | . 46 54 108 108 10 143 11 32 9 299 AOE 2 | . . . . . . . . 1 . 1 Critical Strikes 34 | . 1 . 5 3 . 5 1 1 . 18 Part Disruptions 5 | . . . . . . 1 . . . 4 Damage Taken 13261 | . 442 1086 1579 1260 162 1811 187 664 105 5965 Core 1750 | . 66 172 125 79 . 240 . 49 . 1019 Absorbed by Shields 210 | . . . . 12 . 123 . . 17 58 Redirected to Shielding 60 | . . . . . . . 60 . . . Ignored by Resistances 29 | . . . . 29 . . . . . . Regen/Repaired (Parts) 918 | . 182 . . . . . 16 . 35 685 Core Remaining (%) 54 | 100 . 4 . . . 19 . . 93 . Volleys Fired 452 | . 45 33 78 46 14 69 32 31 10 94 Largest 4 | . 2 2 2 2 2 2 3 3 3 4 Hottest 183 | . 60 100 126 99 50 88 75 114 180 183 Shots Fired 850 | . 90 39 112 71 28 120 94 71 18 207 Gun 642 | . 90 6 66 30 28 102 93 58 18 151 Cannon 77 | . . . 25 . . . . 13 . 39 Launcher 127 | . . 33 21 41 . 18 . . . 14 Special 4 | . . . . . . . 1 . . 3 Kinetic 495 | . 88 17 9 18 28 93 93 32 . 117 Thermal 160 | . . 5 83 12 . 9 . 26 13 12 Explosive 69 | . . 17 20 17 . 15 . . . . Electromagnetic 122 | . 2 . . 24 . 3 . 13 5 75 Robot Hit Streak 26 | . 7 8 14 15 7 9 6 12 13 26 Robot Miss Streak 6 | . 5 1 3 4 2 6 4 3 2 5 Penetration Max 1 | . . . . . . . . . . 1 Secondary Targets 11 | . 2 . . . 1 3 . 2 . 3 Max Gunslinging Chain 1 | . 1 . . . 1 1 . 1 . 1 Shots Hit Robots 630 | . 53 39 97 35 17 75 50 49 15 200 Core Hits 387 | . 23 30 70 36 6 51 19 21 4 127 Critical Kills 7 | . . 1 2 1 . . . . . 3 Critical Parts Destroyed 25 | . . 3 4 . . 2 1 1 . 14 Critical Strikes 39 | . . 4 7 1 . 4 1 2 . 20 Burn 4 | . . . 1 . . 2 . 1 . . Destroy 14 | . . . . . . . 1 . . 13 Smash 19 | . . 4 6 1 . 2 . 1 . 5 Sever 2 | . . . . . . . . . . 2 Melee Attacks 220 | . 13 32 44 21 . 18 9 9 . 74 Impact 186 | . 13 32 44 21 . 18 9 9 . 40 Slashing 34 | . . . . . . . . . . 34 Piercing . | . . . . . . . . . . . Sneak Attacks 20 | . 3 . 4 . . . 1 4 . 8 Combat Hostiles 4 | . 1 . . . . . . . . 3 Follow-up Attacks 2 | . . . 2 . . . . . . . Damage Inflicted 21422 | . 853 1952 4107 2200 306 3067 1027 1272 381 6257 Guns 7386 | . 642 89 838 325 306 1002 909 709 381 2185 Cannons 1275 | . . . 439 . . . . 209 . 627 Explosions 7393 | . . 1567 1612 1367 . 1723 . . . 1124 Melee 5361 | . 211 296 1216 508 . 342 113 354 . 2321 Ramming 7 | . . . 2 . . . 5 . . . Kinetic 5934 | . 642 870 206 189 306 853 909 292 . 1667 Thermal 2562 | . . 89 1152 222 . 149 . 417 299 234 Explosive 4552 | . . 697 1531 821 . 1503 . . . . Electromagnetic 3006 | . . . . 460 . 220 . 209 82 2035 Impact 4205 | . 211 296 1216 508 . 342 113 354 . 1165 Slashing 1156 | . . . . . . . . . . 1156 Piercing . | . . . . . . . . . . . Highest Corruption 13 | . . . . . . 4 1 1 1 13 Average Corruption 3 | . . . . . . 3 1 1 1 7 Corruption Purged 6 | . . . . . . . . . . 6 Corruption Blocked 28 | . . . . . . . . . . 28 Effects 122 | . . . . . . 31 4 14 12 61 Message Errors 25 | . . . . . . 8 1 1 4 11 Matter Fused 24 | . . . . . . 2 . 6 1 15 Heat Flow Errors 16 | . . . . . . 6 . . 4 6 Energy Discharges 12 | . . . . . . 4 2 2 . 4 Parts Rejected 5 | . . . . . . 1 . . . 4 Data Loss (minor) 19 | . . . . . . 3 1 3 2 10 Data Loss (major) 9 | . . . . . . 3 . 1 1 4 Misfires 3 | . . . . . . . . 1 . 2 Alerts 2 | . . . . . . 1 . . . 1 Misdirections 1 | . . . . . . . . . . 1 Weapon Failures 6 | . . . . . . 3 . . . 3 Overload Shots 7 | . . . . . . . . . 7 . Overflow Damage 1707 | . 31 83 350 103 . 177 38 221 . 704 Projectiles 1 | . . . . . . . . . . 1 Explosions 224 | . . 25 52 81 . 37 . . . 29 Melee 1482 | . 31 58 298 22 . 140 38 221 . 674 Knockbacks 26 | . 1 3 8 2 . 1 1 2 . 8 Impact 21 | . 1 3 6 2 . 1 1 2 . 5 Kinetic 2 | . . . . . . . . . . 2 Secondary 3 | . . . 2 . . . . . . 1 Self-Inflicted Damage 342 | . . 58 36 12 . 42 2 . . 192 Shots 15 | . . 4 1 2 . 2 . . . 6 Rammed 3 | . . . 2 . . . 1 . . . Targets Rammed 3 | . . . 2 . . . 1 . . . Kicked . | . . . . . . . . . . . Crushed . | . . . . . . . . . . . Highest Temperature 317 | . 21 . 178 215 . 317 144 104 229 269 Average Temperature 62 | . 8 . 52 38 . 94 42 29 92 66 Received Heat Transfer 2646 | . 171 180 765 396 90 468 9 147 24 396 Effects 2 | . . . . . . 1 . . . 1 Energy Bleed 2 | . . . . . . 1 . . . 1 Siege Activations . | . . . . . . . . . . . Martial Activations . | . . . . . . . . . . . Shielding Activations . | . . . . . . . . . . . Robots Disrupted 6 | . . . . . . . . . . 6 Combat Hostiles 6 | . . . . . . . . . . 6 Robots Corrupted 22 | . 4 2 6 3 . 2 . 2 . 3 Combat Hostiles 15 | . 1 2 6 3 . 2 . . . 1 Parts Fried 48 | . 10 4 3 7 . 1 1 6 . 16 Impact Corruptions 55 | . 4 3 12 2 . 6 1 7 . 20 Robots Melted 2 | . . . . . . . . . . 2 Combat Hostiles 2 | . . . . . . . . . . 2 Parts Melted 14 | . . . 1 . . 2 . . 1 10 Heat Transferred 5619 | . . 100 2196 346 . 481 . 888 472 1136 Parts Sabotaged . | . . . . . . . . . . . Parts Stolen . | . . . . . . . . . . . Parts Stripped . | . . . . . . . . . . . Power Chain Reactions 8 | . . . . 3 . . . . . 5 Alert | -11 -10 -10 -8 -8 -8 -8 -7 -7 -7 -5 ------- Run | Yrd Mat Sub Mat Gar Mat Gar Fac Sto Rec Fac Maximum Alert Level 4 | . . . 1 4 2 4 2 2 1 2 Low Security (%) 36 | 100 100 . 68 12 . . . 15 73 7 Level 1 28 | . . . 31 5 . 10 59 24 26 61 Level 2 21 | . . . . 37 100 26 40 60 . 31 Level 3 10 | . . . . 31 . 58 . . . . Level 4 1 | . . . . 12 . 5 . . . . Level 5 . | . . . . . . . . . . . High Security . | . . . . . . . . . . . Max Security . | . . . . . . . . . . . Peak Influence 1214 | . 117 . 352 1213 571 1214 637 601 262 565 Initial 637 | . . . 33 111 518 351 637 206 229 350 Average 350 | . 41 . 168 683 541 797 412 377 107 340 Influence Increases 8384 | . 484 244 1381 1202 113 963 570 1637 281 1509 Destroy 0b10 Robot/C 3920 | . 240 200 780 640 60 580 200 600 40 580 Destroy 0b10 Robot/NC 345 | . 40 . 75 10 . . 45 90 5 80 Destroy Leader 740 | . 58 10 190 20 20 30 84 174 . 154 Allied During Kill 621 | . . 4 5 6 3 . 159 442 1 1 Successful Hack 256 | . 50 . 49 14 . 30 58 14 23 18 Select Force Hacks 390 | . 60 . 60 . 30 . . . 210 30 Disable Machine 360 | . 15 . 30 45 . 15 15 105 . 135 Anti-Garrison Action 400 | . . . . 200 . 200 . . . . Destroy Structure 477 | . 6 . 147 147 . 78 9 32 2 56 Advance Influence 350 | . . . . . . . . . . 350 Partial Spotted 15 | . . . . . . . . . . 15 Lose Combat Pursuer 510 | . 15 30 45 120 . 30 . 180 . 90 Influence Decreases 7855 | . 424 238 1275 311 635 290 1331 1501 870 980 Entered New Map 2042 | . . 29 33 61 545 190 577 247 360 . Time Decay 3363 | . 424 209 602 . 40 . 534 434 480 640 Lost Part 601 | . . . 91 80 10 100 . . 10 310 Lost Ally 610 | . . . 60 20 40 . 70 370 20 30 Purge Threat 1239 | . . . 489 150 . . 150 450 . . Squads Dispatched 43 | . 3 . 6 . 2 . 9 6 . 17 Investigation 15 | . 2 . 4 . 1 . 3 1 . 4 Extermination 11 | . . . . . . . 4 1 . 6 Reinforcement 12 | . 1 . 2 . . . 2 1 . 6 Assault 3 | . . . . . . . . 3 . . Garrison 2 | . . . . . 1 . . . . 1 Intercept . | . . . . . . . . . . . Searches Triggered . | . . . . . . . . . . . Construction Impeded 6 | . . . 2 . . . . 1 . 3 Haulers Reinforced . | . . . . . . . . . . . Active Scanning Responses . | . . . . . . . . . . . Cargo Convoy Interrupts . | . . . . . . . . . . . Stealth | -11 -10 -10 -8 -8 -8 -8 -7 -7 -7 -5 --------- Run | Yrd Mat Sub Mat Gar Mat Gar Fac Sto Rec Fac Distress Signals 20 | . 1 . 4 1 . 3 1 5 4 1 Communications Jammed . | . . . . . . . . . . . Distress Signals . | . . . . . . . . . . . Times Spotted 264 | . 22 27 52 30 4 32 11 32 3 51 Peak Tracking Total 8 | . 4 6 4 7 4 8 3 7 1 8 Tactical Retreats 21 | . 1 1 2 3 . 1 . 8 . 5 Traps | -11 -10 -10 -8 -8 -8 -8 -7 -7 -7 -5 ------- Run | Yrd Mat Sub Mat Gar Mat Gar Fac Sto Rec Fac Traps Triggered 20 | . . 3 . 3 . 5 . 5 . 4 Indirectly 5 | . . . . 1 . 1 . . . 3 Trap Hack Attempts . | . . . . . . . . . . . Triggered . | . . . . . . . . . . . Disarmed 3 | . . . . . . . . 3 . . Reprogrammed . | . . . . . . . . . . . Reused . | . . . . . . . . . . . Traps Extracted . | . . . . . . . . . . . Installed . | . . . . . . . . . . . Triggered . | . . . . . . . . . . . Machines | -11 -10 -10 -8 -8 -8 -8 -7 -7 -7 -5 ---------- Run | Yrd Mat Sub Mat Gar Mat Gar Fac Sto Rec Fac Machines Disabled 30 | . 1 . 2 8 . 2 1 7 . 9 Max in Single Turn 2 | . 1 . 1 2 . 1 . 1 . 2 Phase Generator 1 | . . . . 1 . . . . . . Machines Repaired . | . . . . . . . . . . . Machines Dismantled . | . . . . . . . . . . . Machines Sabotaged . | . . . . . . . . . . . Overloaded Fab Kills . | . . . . . . . . . . . Hacking | -11 -10 -10 -8 -8 -8 -8 -7 -7 -7 -5 --------- Run | Yrd Mat Sub Mat Gar Mat Gar Fac Sto Rec Fac Machines Accessed 70 | . 10 1 16 3 2 3 7 9 13 6 Terminals 46 | . 7 . 11 3 . 3 4 9 4 5 Fabricators 2 | . . . . . . . 2 . . . Repair Stations 3 | . 1 . 1 . . . 1 . . . Recycling Units 13 | . 2 . 2 . 1 . . . 7 1 Scanalyzers 1 | . . . 1 . . . . . . . Garrison Access 2 | . . . 1 . 1 . . . . . Total Hacks 236 | . 28 4 48 4 3 3 32 36 61 17 Successful 137 | . 14 4 25 3 2 2 23 13 46 5 Failed 98 | . 13 . 23 1 1 1 9 23 15 12 Catastrophic 15 | . 2 . 4 . . . 1 4 3 1 Database Lockouts 1 | . 1 . . . . . . . . . Manual 93 | . 11 . 21 3 1 3 8 21 16 9 Terminals 138 | . 21 . 35 4 . 3 9 36 16 14 Fabricators 22 | . . . . . . . 22 . . . Repair Stations 9 | . 4 . 4 . . . 1 . . . Recycling Units 30 | . 3 . 5 . 1 . . . 18 3 Scanalyzers 2 | . . . 2 . . . . . . . Garrison Access 4 | . . . 2 . 2 . . . . . Terminal Hacks 74 | . 7 4 11 3 . 1 2 12 32 2 Record 30 | . 1 4 . . . . . . 25 . Part Schematic 2 | . 1 . . . . . . . 1 . Robot Schematic 4 | . 1 . . . . . 1 2 . . Prototype ID Bank 3 | . . . . . . . . 2 1 . Open Door 3 | . . . . 1 . . . 1 . 1 Level Access Points 1 | . . . 1 . . . . . . . Branch Access Points 2 | . . . 1 . . . . . 1 . Terminal Index 3 | . 1 . 1 . . . . 1 . . Recycling Unit Index 1 | . . . 1 . . . . . . . Alert Level 1 | . . . 1 . . . . . . . Unreport Threat 9 | . . . 4 1 . . 1 3 . . Locate Traps 4 | . 1 . 2 . . . . . . 1 Disarm Traps 1 | . . . . . . . . 1 . . Dispatch Records 2 | . . . . . . . . 1 1 . Patrol Status 1 | . . . . . . . . . 1 . Hauler Manifests 1 | . 1 . . . . . . . . . Registered Components 2 | . 1 . . . . . . 1 . . Garrison Registry 2 | . . . . 1 . 1 . . . . Release Object 2 | . . . . . . . . . 2 . Fabricator Hacks 18 | . . . . . . . 18 . . . Load Schematic 9 | . . . . . . . 9 . . . Build 9 | . . . . . . . 9 . . . Repair Station Hacks 5 | . 4 . 1 . . . . . . . Scan Component 3 | . 2 . 1 . . . . . . . Repair 2 | . 2 . . . . . . . . . Recycling Unit Hacks 6 | . . . 2 . . . . . 4 . Retrieve Components 6 | . . . 2 . . . . . 4 . Scanalyzer 2 | . . . 2 . . . . . . . Insert Component 1 | . . . 1 . . . . . . . Analyze 1 | . . . 1 . . . . . . . Garrison Access Hacks 2 | . . . 1 . 1 . . . . . Unlock Access 2 | . . . 1 . 1 . . . . . Unauthorized Hacks 28 | . 3 . 8 . 1 1 3 1 9 2 Terminals 13 | . 1 . 6 . . 1 1 1 2 1 Assimilate 1 | . . . . . . . . . . 1 Botnet 9 | . . . 4 . . 1 1 1 2 . Operators 3 | . 1 . 2 . . . . . . . Fabricators 1 | . . . . . . . 1 . . . Prioritize 1 | . . . . . . . 1 . . . Repair Stations 1 | . . . . . . . 1 . . . Mechanics 1 | . . . . . . . 1 . . . Recycling Units 13 | . 2 . 2 . 1 . . . 7 1 Tunnel 13 | . 2 . 2 . 1 . . . 7 1 Scanalyzers . | . . . . . . . . . . . Garrison Access . | . . . . . . . . . . . Data Cores Recovered 3 | . . . 3 . . . . . . . Used . | . . . . . . . . . . . Hacking Detections 39 | . 8 . 12 . 1 . 5 5 4 4 Full Trace Events 6 | . . . 2 . . . 2 . . 2 Feedback Events . | . . . . . . . . . . . Feedback Blocked . | . . . . . . . . . . . Robot Schematics Acquired 4 | . 1 . . . . . 1 2 . . Robots Built 17 | . . . . . . . 17 . . . Authchips 8 | . . . . . . . 8 . . . Time 211 | . . . . . . . 211 . . . Total Robot Build Rating 65 | . . . . . . . 65 . . . Part Schematics Acquired 3 | . 1 . 1 . . . . . 1 . Parts Built . | . . . . . . . . . . . Authchips . | . . . . . . . . . . . Time . | . . . . . . . . . . . Total Part Build Rating . | . . . . . . . . . . . Parts Repaired 2 | . 2 . . . . . . . . . Time 52 | . 52 . . . . . . . . . Parts Recycled . | . . . . . . . . . . . Recycled Matter . | . . . . . . . . . . . Retrieved Matter . | . . . . . . . . . . . Retrieved Components 24 | . . . 10 . . . . . 14 . Parts Scanalyzed 1 | . . . 1 . . . . . . . Part Schematics Acquired 1 | . . . 1 . . . . . . . Parts Damaged . | . . . . . . . . . . . Bothacking | -11 -10 -10 -8 -8 -8 -8 -7 -7 -7 -5 ------------ Run | Yrd Mat Sub Mat Gar Mat Gar Fac Sto Rec Fac Used RIF Installer 2 | . . . . . . 2 . . . . Coupler Efficiency 1 | . . . . . . 1 . . . . Robots Hacked 1 | . . . . . . . 1 . . . Non-combat 1 | . . . . . . . 1 . . . Combat . | . . . . . . . . . . . Robot Hacks Applied 1 | . . . . . . . 1 . . . ignore_repairs 1 | . . . . . . . 1 . . . Relay Couplers Released . | . . . . . . . . . . . Fabnet Peak Effective % . | . . . . . . . . . . . Robots Rewired 6 | . . . . 4 . . . . . 2 Allies Hacked 5 | . . . . . . . 2 2 . 1 Hacks Repelled . | . . . . . . . . . . . Allies | -11 -10 -10 -8 -8 -8 -8 -7 -7 -7 -5 -------- Run | Yrd Mat Sub Mat Gar Mat Gar Fac Sto Rec Fac Total Allies 34 | . . 3 . 4 . . 19 4 1 3 Largest Group 17 | . . 3 3 3 2 . 17 15 1 1 Highest-Rated Group 606 | . . 57 57 57 26 . 606 522 19 49 Highest-Rated Ally 49 | . . 19 19 31 16 . 37 37 19 49 Initial Warlord ECA Mod 8 | . . . . . 4 4 . . . . Total Orders 6 | . . . . 3 . . 3 . . . STAY 2 | . . . . 2 . . . . . . FOLLOW 1 | . . . . 1 . . . . . . AID 3 | . . . . . . . 3 . . . Ally Attacks 216 | . . 11 12 8 8 . 24 146 2 5 Total Damage 4654 | . . 164 212 226 78 . 563 3263 25 123 Kills 47 | . . 1 1 4 . . 7 33 . 1 Allies Corrupted . | . . . . . . . . . . . Allies Melted . | . . . . . . . . . . . Intel | -11 -10 -10 -8 -8 -8 -8 -7 -7 -7 -5 ------- Run | Yrd Mat Sub Mat Gar Mat Gar Fac Sto Rec Fac Active Infowar (turns) 1230 | . . . 1044 5 . . . . 2 179 Optics 104 | . . . 102 . . . . . 2 . Sensors 179 | . . . . . . . . . . 179 Structural 947 | . . . 942 5 . . . . . . Robot Analysis Total . | . . . . . . . . . . . Derelict Logs Recovered 1 | . . 1 . . . . . . . . Drone Launches . | . . . . . . . . . . . Drone Recoveries . | . . . . . . . . . . . Exploration | -11 -10 -10 -8 -8 -8 -8 -7 -7 -7 -5 ------------- Run | Yrd Mat Sub Mat Gar Mat Gar Fac Sto Rec Fac Turns Passed 16448 | 77 1719 2603 2194 1367 87 1817 1502 1068 1733 2281 Spaces Moved 7848 | 44 607 1115 1038 701 36 969 767 612 931 1028 Core 155 | 6 . . . . . . . . 4 145 Treads 3518 | 38 607 861 723 251 10 217 12 . 524 275 Legs 11 | . . . . . . 11 . . . . Wheels 3556 | . . 254 315 450 26 741 755 612 403 . Hover 608 | . . . . . . . . . . 608 Flight . | . . . . . . . . . . . Fastest Speed 40 | 50 160 110 120 145 120 120 145 145 130 40 Average Speed 170 | 145 234 211 164 152 142 153 145 149 156 169 Slowest Speed 750 | 160 240 240 240 160 160 470 305 160 750 400 Overloaded Moves . | . . . . . . . . . . . Propulsion Burnouts . | . . . . . . . . . . . Robots Hopped . | . . . . . . . . . . . Potential Cave-ins . | . . . . . . . . . . . Cave-ins Triggered . | . . . . . . . . . . . Exploration Rate (%) 59 | 3 99 64 87 80 9 84 16 87 98 24 Regions Visited 10 Branch Regions 3 Pre-discovered Areas 14 | . 2 1 2 . 1 . . . 7 1 Known Exits Taken 3 | . . . 1 . 1 . 1 . . . Unknown Exits Taken 5 | 1 1 1 . . . . . 1 1 . Scrap Searched 3 | . . 3 . . . . . . . . Spaces Dug 144 | . 5 40 54 11 . 8 7 4 1 14 Terrain Destroyed 659 | . 5 193 180 217 . 23 7 4 2 28 Melee 34 | . 5 . 4 . . . 7 4 . 14 Projectile 11 | . . . 7 . . 1 . . 2 1 AOE 614 | . . 193 169 217 . 22 . . . 13 Terrain Rammed . | . . . . . . . . . . . Walls Destroyed . | . . . . . . . . . . . Machines Disabled . | . . . . . . . . . . . Actions | -11 -10 -10 -8 -8 -8 -8 -7 -7 -7 -5 --------- Run | Yrd Mat Sub Mat Gar Mat Gar Fac Sto Rec Fac Total 9933 | 54 787 1265 1380 903 54 1182 1109 705 1199 1295 Wait 811 | 1 98 14 93 55 1 20 255 9 221 44 Move 7839 | 43 606 1114 1038 699 36 968 766 611 930 1028 Hop . | . . . . . . . . . . . Pick Up 173 | 3 16 48 34 10 1 20 11 11 6 13 Fast Attach 52 | 5 2 4 12 5 . 9 . 1 4 10 Attach 58 | 1 . 6 10 4 1 5 10 2 3 16 Detach 3 | . . . . . . . . . . 3 Swap 132 | 1 6 4 29 22 1 28 15 15 4 7 Drop 126 | . 1 10 42 9 . 23 8 11 21 1 Fire 452 | . 45 33 78 46 14 69 32 31 10 94 Melee 217 | . 13 32 41 21 . 18 9 9 . 74 Ram 1 | . . . . . . . 1 . . . Kick . | . . . . . . . . . . . Crush 2 | . . . 2 . . . . . . . Escape Stasis 29 | . . . . 10 . 19 . . . . Rewire 23 | . . . . 20 . . . . . 3 Trap . | . . . . . . . . . . . Miscellaneous 15 | . . . 1 2 . 3 2 5 . 2 Route ------- -11/Scrapyard -10/Materials (discovered 5 exits: [*Mat x3] / [*Min] / *Sub) -10/Subcaves (discovered 2 exits: *Mat x2) -8/Materials (discovered 4 exits: *Fac x3 / Gar) -8/Garrison (discovered 3 exits: *Mat x3) -8/Materials -8/Garrison (discovered 3 exits: *Fac x3) -7/Factory (discovered 6 exits: *Fac x2 / *Sto x2 / Low x2) -7/Storage (discovered 2 exits: *Fac / *Rec) -7/Recycling -5/Factory (discovered 2 exits: [*Fac] / [*Ext]) History --------- Turn | Location | Event 56 | -11/Scrapyard | Discovered new exit (range 12) 78 | -11/Scrapyard | Entered Materials 155 | -10/Materials | Discovered new exit (range 16) 314 | -10/Materials | Build established: Mutant 560 | -10/Materials | Discovered new exit (range 16) 1059 | -10/Materials | Discovered new exit (range 4) 1160 | -10/Materials | Central database locked down 1241 | -10/Materials | Repaired Assault Rifle 1268 | -10/Materials | Repaired Lgt. Treads 1590 | -10/Materials | Discovered new exit (range 14) 1780 | -10/Materials | Discovered new exit (range 8) 1797 | -10/Materials | Entered Subcaves 2471 | -10/Subcaves | Learned 4 Materials zone layouts 2490 | -10/Subcaves | Visited Clippyterm 2497 | -10/Subcaves | Learned location of Extension (-5) 2497 | -10/Subcaves | Learned 40 Factory zone layouts 2541 | -10/Subcaves | A swath of the cavern ceiling suddenly collapsed 2642 | -10/Subcaves | Shifting Twisted Machinery released Sub. Laser 2685 | -10/Subcaves | Shifting Twisted Machinery released Sub. Optics 2767 | -10/Subcaves | Discovered new exit (range 15) 3367 | -10/Subcaves | Core integrity fell below 50% 3440 | -10/Subcaves | Lost 3 parts (1p1n1u) 3584 | -10/Subcaves | Shifting Twisted Machinery released Sub. Shrapnel Launcher 3584 | -10/Subcaves | Shifting Twisted Machinery released Piercing Trap 3932 | -10/Subcaves | Visited triangular shrine 3946 | -10/Subcaves | Found Prototype Device 4040 | -10/Subcaves | Ambushed by Subdweller buried in earth 4058 | -10/Subcaves | Core integrity fell below 20% 4096 | -10/Subcaves | Lost 3 parts (1n1u1w) 4193 | -10/Subcaves | Identified V3-11A's Pendant 4298 | -10/Subcaves | Disturbed a concealed Subdweller 4298 | -10/Subcaves | Befriended Subdweller 4306 | -10/Subcaves | Discovered new exit (range 9) 4338 | -10/Subcaves | Befriended Subdweller 4358 | -10/Subcaves | Befriended Subdweller 4367 | -10/Subcaves | A swath of the cavern ceiling suddenly collapsed 4400 | -10/Subcaves | Entered Materials 4400 | -8/Materials | Accompanied by 3 allies 4400 | -8/Materials | Evolved 4 slots: Propulsion x2, Utility x2 4481 | -8/Materials | Lost 3 allies 4751 | -8/Materials | Build established: Scavenger-Mutant 5055 | -8/Materials | Discovered new exit (range 13) 5643 | -8/Materials | Lost 4 parts (2n2u) 6138 | -8/Materials | Identified exit to Factory 6594 | -8/Materials | Identified exit to Garrison 6594 | -8/Materials | Entered Garrison 6676 | -8/Garrison | Triggered checkpoint 6704 | -8/Garrison | Discovered new exit (range 42) 6704 | -8/Garrison | Discovered new exit (range 67) 6704 | -8/Garrison | Discovered new exit (range 75) 6756 | -8/Garrison | Triggered checkpoint 6774 | -8/Garrison | Triggered checkpoint 6837 | -8/Garrison | Triggered checkpoint 6854 | -8/Garrison | Triggered checkpoint 6890 | -8/Garrison | Destroyed 11 combat bots 7127 | -8/Garrison | Lost 3 parts (1n2u) 7338 | -8/Garrison | Phase Generator disabled 7562 | -8/Garrison | Triggered checkpoint 7802 | -8/Garrison | Identified exit to Materials 7810 | -8/Garrison | Attempted to access garrison exit controls, blocked by remote lockdown 7961 | -8/Garrison | Entered Materials 7961 | -8/Materials | Accompanied by 2 allies 7984 | -8/Materials | Garrison activated, responded to threat 8048 | -8/Materials | Identified exit to Garrison 8048 | -8/Materials | Entered Garrison 8102 | -8/Garrison | Triggered checkpoint 8202 | -8/Garrison | Triggered checkpoint 8253 | -8/Garrison | Triggered checkpoint 8257 | -8/Garrison | Core integrity fell below 50% 8286 | -8/Garrison | Lost 3 parts (1p2n) 8298 | -8/Garrison | Destroyed 10 combat bots 8328 | -8/Garrison | Lost 3 parts (2n1u) 8456 | -8/Garrison | Triggered checkpoint 8483 | -8/Garrison | Discovered exit to Factory (range 14) 8654 | -8/Garrison | Triggered checkpoint 8724 | -8/Garrison | Lost 4 parts (3n1u) 8856 | -8/Garrison | Discovered exit to Factory (range 9) 8992 | -8/Garrison | Triggered checkpoint 9053 | -8/Garrison | Discovered exit to Factory (range 8) 9096 | -8/Garrison | Triggered checkpoint 9099 | -8/Garrison | Core integrity fell below 20% 9170 | -8/Garrison | Discovered exit to Factory (range 30) 9170 | -8/Garrison | Discovered exit to Factory (range 70) 9170 | -8/Garrison | Discovered exit to Factory (range 26) 9457 | -8/Garrison | Triggered checkpoint 9564 | -8/Garrison | Installed Relay Interface Framework 9752 | -8/Garrison | Expanded RIF knowledge: Coupler Efficiency 9865 | -8/Garrison | Entered Factory 9865 | -7/Factory | Evolved 2 slots: Utility x1, Weapon x1 9866 | -7/Factory | Identified exit to Lower Caves 9866 | -7/Factory | Identified exit to Storage 9866 | -7/Factory | Identified exit to Factory 10469 | -7/Factory | Build established: Hacker-Tank 10695 | -7/Factory | Fabricated P-60 Hacker (x2) 10718 | -7/Factory | Fabricated P-60 Hacker (x2) 10741 | -7/Factory | Fabricated P-60 Hacker (x2) 10767 | -7/Factory | Fabricated P-60 Hacker (x2) 10794 | -7/Factory | Fabricated P-60 Hacker (x2) 10821 | -7/Factory | Fabricated P-60 Hacker (x2) 10849 | -7/Factory | Fabricated P-60 Hacker (x2) 10876 | -7/Factory | Fabricated P-60 Hacker (x2) 10912 | -7/Factory | Fabricated M-13 Machinist? 10981 | -7/Factory | Hacker 4m assimilated hostile G-47 Trooper 11071 | -7/Factory | Build established: Commander-Gunner 11316 | -7/Factory | Hacker 4a assimilated hostile W-25 Informer 11348 | -7/Factory | Discovered exit to Factory (range 15) 11367 | -7/Factory | Entered Storage 11367 | -7/Storage | Accompanied by 15 allies 11481 | -7/Storage | Build established: Commander-Mutant 11521 | -7/Storage | Hacker 4f assimilated hostile H-55 Commando 11584 | -7/Storage | Lost 8 allies 11606 | -7/Storage | Hacker 4e assimilated hostile Y-54 Guardian 11848 | -7/Storage | Lost 6 allies 11887 | -7/Storage | Build established: Hacker-Gunner 11901 | -7/Storage | Used back door to open Recycling access 11901 | -7/Storage | Discovered new exit (range 4) 12120 | -7/Storage | Discovered exit to Factory (range 6) 12167 | -7/Storage | First assault squad dispatched 12299 | -7/Storage | Met a pair of Derelict thieves 12435 | -7/Storage | Entered Recycling 12473 | -7/Recycling | Befriended Subdweller 12699 | -7/Recycling | Discovered new exit (range 5) 12972 | -7/Recycling | Build established: Hacker-Tank 13265 | -7/Recycling | Found Prototype Device 13267 | -7/Recycling | Identified Scrap Engine 13575 | -7/Recycling | Build established: Hacker-Mutant 14012 | -7/Recycling | Build established: Hacker-Construct 14168 | -7/Recycling | Entered Factory 14168 | -5/Factory | Evolved 4 slots: Power x1, Propulsion x2, Weapon x1 14473 | -5/Factory | Discovered new exit (range 12) 14869 | -5/Factory | Discovered new exit (range 5) 14880 | -5/Factory | Build established: Construct 15159 | -5/Factory | Garrison activated, responded to threat 15298 | -5/Factory | System corruption reached 10% 15337 | -5/Factory | Lost 10 parts (1p6n3w) 15540 | -5/Factory | Build established: Gunner 15776 | -5/Factory | Lost 3 parts (3w) 15823 | -5/Factory | Core integrity fell below 50% 15990 | -5/Factory | Build established: Mutant 16050 | -5/Factory | Lost 4 parts (1p1n1u1w) 16422 | -5/Factory | Core integrity fell below 20% 16449 | -5/Factory | Destroyed by Y-64 Sentinel with KE Penetrator Last Messages --------------- 16419_ Destroyed Tesla Rifle. 16423_ Slug penetrates P-70 Sage. 16425_ P-70 Sage suffers critical hit (Destroy). 16425_ Destroyed Imp. Heat Sink. 16427_ Slug penetrates P-70 Sage. 16427_ Linear Gravjet destroyed. 16429_ P-70 Sage destroyed. 16432_ Slug penetrates Wall. 16433_ KE Penetrator destroyed. 16435_ Acquired 43 matter. 16437_ Imp. System Restoration Module purges 1% system corruption (10%). 16437_ System corrupted: Component data lost. 16439_ Slug penetrates Wall. 16440_ Imp. System Restoration Module purges 1% system corruption (9%). 16441_ Imp. System Restoration Module destroyed. 16441_ Slug penetrates Y-64 Sentinel. 16441_ Slug penetrates Wall. 16442_ Penetrated by Slug. 16442_ Pressure Siphon disabled. 16449_ Penetrated by Slug. Map ----- +----------------------------------------------------+ | #?????????? #??# ?## ########+#### | | #?????????? #??# # ! % % % % ## | | #?????????? #??# # ## | | #########?????????? #??# + %% % | | ??????????????????# #??# # % % %## | | ??????????????????# #??# ? # ## | | ??????????????##### #???? ?# ### | | ???????######## #??# ??# % # | | ???????# # ##?# ???# # | | ???????#"" # ####"####### % ! # | | ???????#"Y / % #! | | ???????#"" # ! # | | ???????# # ### # | | #?????## # #?# """" """" # | | #######"####### #?# """" """" ######## ### | | # #?????# #?# """" """" #??????# #?? | | # """"#?????# #?# % #??????# #?? | | # """"#?????#+#?# """" """% "%%% #??????# #?? | | # """"#?????????# """" """" """" #??????# #?? | | # """"#?????????# """" """" """" #??????# #?? | | # #?????????# #??????# #?? | | + """"#?????????# #??????# #?? | | # """"#?????#####+##+##### #??????# #?? | | # """"#?????# # % #??????# ?? | | # """"#?????# # ####+#######??###?? | | # ??????# @ + ## % #??????? | | #########?????# # ## |#??????? | | #?????????????# """ # ## #??????? | | ####??????????# """"" # T# #??????? | | #???????# """"" # # """ """ #??????? | | #??????!# # ## """ """ #??????? | | #?????? # # ## """ """ #??????? | | #?????? # # ## #??????? | | #?????? # "T" ! # ############??????? | | # ##??? # """ Y# #?????????????????? | | # ## ############;# #?????????????????? | | # ## """" # ## #?????????????????? | | # ## """" # ## #?????????????????? | | # ## """" # #? #?????????????????? | | + ## """" # #? #?????????????????? | | # ??# # #? ??????????????????? | | # ?# ####/########??????????????????????? | | # #####+### #??????????????????????????? | | # #####??????????????????????? | | # ???????????????????? | | # ???????????????????? | | # ?????????????????? | | # ##### ??????????????????? | | ###########/### #?????# #??????????????????? | | # ### ###???????#??????????????????? | +----------------------------------------------------+ Best States ------------- Heat Dissipation 67 Energy Generation 31 Energy Capacity 589 Matter Stores 300 Matter Capacity 300 Sight Range 21 Robot Scan Range 16 Terrain Scan Density 10 Corruption Block 15 Armor Coverage 375 Resistance: TH 10 Resistance: EM 15 Core Shielding 20 Propulsion Shielding 66 Evasion (%) 57 Recoil Reduction 4 Offensive Hacking 20 Defensive Hacking 22 Authchip Count 8 Item Schematics ----------------- Lrg. Storage Unit | -10/Materials | Hacked Multitool | -8/Materials | Scanalyzed Antigrav System | -7/Recycling | Hacked Robot Schematics ------------------ M-13 Machinist | -10/Materials | Hacked P-60 Hacker | -7/Factory | Hacked M-28 Smith | -7/Storage | Hacked O-24 Administrator | -7/Storage | Hacked Fabricated ------------ P-60 Hacker | x2 | -7/Factory | Authchip P-60 Hacker | x2 | -7/Factory | Authchip P-60 Hacker | x2 | -7/Factory | Authchip P-60 Hacker | x2 | -7/Factory | Authchip P-60 Hacker | x2 | -7/Factory | Authchip P-60 Hacker | x2 | -7/Factory | Authchip P-60 Hacker | x2 | -7/Factory | Authchip P-60 Hacker | x2 | -7/Factory | Authchip M-13 Machinist | x1 | -7/Factory Repaired ---------- Assault Rifle | 6% | -10/Materials Lgt. Treads | 37% | -10/Materials Alien Tech Used ----------------- None Achievements -------------- None Challenges ------------ None Game ------ Seed PulseMasterVibroblade Manual? 0 Play Time 03:09:35 Cumulative 475.5 hours Start 2025.05.08 @ 23:44:55 End 2025.05.12 @ 21:21:14 Sessions 3 Manual Loads 0 Difficulty Rogue Special Mode None Game No. 302 Rogue 299 Adventurer 3 Explorer 0 Win Type - Total 8 Types 7/0/1/0/0/0/0/0/0/0 Lore% 69 Gallery% 70 Achievement% 67 Wizard Run 0 Options --------- Layout 0 ASCII 0 Keyboard 0 Movement Numpad Keybinds 0 Fullscreen 1 Font 18/SmallcapsGlow Map View 76x50 Zoom Use 0% Tactical HUD 1 Map Filters NONE Filters NONE Steam 1 RUN: 37d633a1-230c-4f0e-815f-15d53d06b1e2